fUSD/lending_fUSD_20250426
["ID","MTS","AMOUNT","RATE_DAILY","PERIOD"]
[359019359,1745652640988,-1000.0,0.0002,2]
[359019360,1745652640998,-1000.0,0.0002,2]
[359019361,1745652641007,-1000.0,0.0002,2]
[359019362,1745652641017,-702.36256316,0.0002,2]
[359019363,1745652641027,-455.14,0.0002,2]
[359019364,1745652641037,-455.14,0.0002,2]
[359019365,1745652641048,-455.14,0.0002,2]
[359019366,1745652641058,-455.14,0.0002,2]
[359019367,1745652641069,-150.0,0.0002,2]
[359019368,1745652641078,-799.84,0.0002,2]
[359019369,1745652641089,-817.9,0.0002,2]
[359019370,1745652641098,-351.4,0.0002,2]
[359019371,1745652641108,-203.43,0.0002,2]
[359019372,1745652641118,-351.4,0.0002,2]
[359019373,1745652641128,-351.4,0.0002,2]
[359019374,1745652641137,-262.36160997,0.0002,2]
[359019375,1745652641147,-166.63,0.0002,2]
[359019376,1745652641162,-455.14,0.0002,2]
[359019377,1745652641173,-1357122.83834525,0.0002,2]
[359019378,1745652641187,-10072.71368094,0.0002,2]
[359019379,1745652641200,-9545.86031978,0.0002,2]
[359019380,1745652642279,-25356.9691089,0.0002,2]
[359019381,1745652642291,-536.69170005,0.0002,2]
[359019382,1745652642303,-2608.81,0.0002,2]
[359019383,1745652642324,-4029.188855,0.0002,2]
[359019384,1745652643241,-266.93514752,0.00019999,2]
[359019385,1745652643251,-613.44488128,0.00019999,2]
[359019389,1745652645734,-400.0,0.00019999,2]
[359019390,1745652645746,-101.55511872,0.00019999,2]
[359019391,1745652645755,-820.44488128,0.0002,2]
[359019392,1745652645805,-954.02566301,0.0002,2]
[359019393,1745652645944,-397.75467257,0.0002,2]
[359019394,1745652645955,-10113.87377,0.0002,2]
[359019395,1745652645966,-54985.95778663,0.0002,2]
[359019397,1745652646071,-600.66286341,0.0002,2]
[359019435,1745652784998,300.0,0.00019137,2]
[359019436,1745652792343,288.0,0.00037808,60]
[359019437,1745652888141,154.66,0.0001923,2]
[359019438,1745652935556,23900.0,0.00019077,2]
[359019439,1745652991342,1250.04,0.00017142,2]
[359019440,1745653005785,749.96,0.00012558,2]
[359019441,1745653005807,2000.0,0.00012558,2]
[359019442,1745653005828,200.0,0.00012558,2]
[359019443,1745653005851,9550.04,0.00012558,2]
[359019444,1745653036455,1240.0,0.000358,120]
[359019446,1745653144942,155.79,0.00027425,30]
[359019447,1745653192771,2000.0,0.00018984,2]
[359019448,1745653192797,1393.43,0.00018984,2]
[359019449,1745653218571,606.57,0.00018887,2]
[359019450,1745653218597,393.43,0.00018887,2]
[359019451,1745653336544,250.0,0.00017,2]
[359019452,1745653337575,300.0,0.00019,2]
[359019453,1745653356159,1056.57,0.00018886,2]
[359019454,1745653356183,860.08,0.00018886,2]
[359019455,1745653522718,500.0,0.00037808,60]
[359019456,1745653529899,500.0,0.00037808,60]
[359019457,1745653533929,500.0,0.00037808,60]
[359019458,1745653535338,500.0,0.00037808,60]
[359019459,1745653536271,500.0,0.00037808,60]
[359019460,1745653537390,500.0,0.00037808,60]
[359019461,1745653538256,500.0,0.00037808,60]
[359019462,1745653539082,500.0,0.00037808,60]
[359019463,1745653539869,500.0,0.00037808,60]
[359019464,1745653540712,500.0,0.00037808,60]
[359019465,1745653541511,500.0,0.00037808,60]
[359019466,1745653542417,500.0,0.00037808,60]
[359019467,1745653543229,500.0,0.00037808,60]
[359019468,1745653544225,500.0,0.00037808,60]
[359019469,1745653545591,500.0,0.00037808,60]
[359019470,1745653558329,500.0,0.00037808,60]
[359019471,1745653560085,500.0,0.00037808,60]
[359019472,1745653569370,496.53741727,0.00037808,60]
[359019477,1745653651331,250.0,0.00018891,2]
[359019478,1745653696472,205.1,0.00018895,2]
[359019479,1745653716664,712.7,0.00018898,2]
[359019529,1745653832724,-1250.04,0.00019406,2]
[359019531,1745653832735,-250.0,0.00019438,2]
[359019533,1745653832745,-166.7,0.0001947,2]
[359019535,1745653832754,-150.0,0.00019781,2]
[359019537,1745653832764,-338.4179613,0.00019799,2]
[359019539,1745653832773,-784.8083531,0.00019799,2]
[359019541,1745653832785,-65.1916469,0.00019799,2]
[359019543,1745653832794,-1200.0,0.00019799,2]
[359019545,1745653832803,-29400.0,0.000198,2]
[359019547,1745653832814,-7109.66354915,0.000198,2]
[359019549,1745653832823,-2500.0,0.000198,2]
[359019552,1745653832838,-7109.66354906,0.00019811,2]
[359019554,1745653832849,-200.0,0.0001982,2]
[359019556,1745653832858,-835.29344676,0.0001982,2]
[359019558,1745653832867,-7109.66354906,0.00019822,2]
[359019560,1745653832877,-7109.66354906,0.00019833,2]
[359019562,1745653832887,-2000.0,0.0001984,2]
[359019564,1745653832896,-200.0,0.0001984,2]
[359019566,1745653832905,-7109.66354906,0.00019844,2]
[359019568,1745653832915,-7109.66354906,0.00019856,2]
[359019570,1745653832925,-7109.66354906,0.00019867,2]
[359019572,1745653832934,-7109.66354906,0.00019878,2]
[359019574,1745653832943,-618.81,0.00019882,2]
[359019576,1745653832954,-618.81,0.00019884,2]
[359019577,1745653832963,-17867.83983377,0.00019886,2]
[359019580,1745653832973,-1839.3195,0.00019886,2]
[359019581,1745653832983,-6720.41,0.00019887,2]
[359019584,1745653832992,-618.81,0.00019887,2]
[359019586,1745653833002,-17867.83983373,0.00019888,2]
[359019588,1745653833011,-151.0,0.00019888,2]
[359019590,1745653833021,-207.4,0.00019888,2]
[359019592,1745653833031,-618.81,0.00019888,2]
[359019594,1745653833040,-7109.66354906,0.00019889,2]
[359019596,1745653833050,-17867.83983373,0.00019889,2]
[359019598,1745653833060,-6754.93312908,0.00019889,2]
[359019599,1745653833070,-618.81,0.0001989,2]
[359019600,1745653833080,-618.81,0.0001989,2]
[359019601,1745653833090,-618.81,0.0001989,2]
[359019602,1745653833100,-618.81,0.0001989,2]
[359019603,1745653833110,-618.81,0.0001989,2]
[359019604,1745653833119,-618.81,0.0001989,2]
[359019605,1745653833130,-17867.83983373,0.00019891,2]
[359019606,1745653833139,-17867.83983373,0.00019892,2]
[359019607,1745653833148,-8212.15997907,0.00019894,2]
[359019608,1745653833161,-9655.67985466,0.00019894,2]
[359019609,1745653833171,-17867.83983373,0.00019895,2]
[359019610,1745653833181,-17867.83983373,0.00019897,2]
[359019611,1745653833192,-17867.83983373,0.00019898,2]
[359019612,1745653833205,-225.0,0.000199,2]
[359019613,1745653833215,-220.5434,0.000199,2]
[359019614,1745653833226,-174.59780577,0.000199,2]
[359019615,1745653833237,-55204.17346477,0.000199,2]
[359019616,1745653833250,-6364.31449639,0.000199,2]
[359019622,1745653833320,-417.1601092,0.000199,2]
[359019624,1745653833334,-1502.46852206,0.000199,2]
[359019626,1745653833347,-563.70807734,0.000199,2]
[359019703,1745653837923,-1732.7999,0.000199,2]
[359019704,1745653837935,-1026.68994,0.000199,2]
[359019705,1745653837948,-1768.39999999,0.000199,2]
[359019706,1745653837960,-740.95,0.000199,2]
[359019707,1745653837972,-880.52117851,0.000199,2]
[359019708,1745653837994,-65378.58037523,0.000199,2]
[359019709,1745653838005,-7109.66354906,0.000199,2]
[359019710,1745653838016,-457.64022669,0.000199,2]
[359019711,1745653838027,-411.49466743,0.000199,2]
[359019712,1745653838038,-1345.05629119,0.000199,2]
[359019713,1745653838048,-17867.83983373,0.000199,2]
[359019714,1745653838058,-398.2423481,0.000199,2]
[359019715,1745653838070,-202.83355767,0.000199,2]
[359019716,1745653838080,-4188.218,0.00019925,2]
[359019717,1745653838091,-179.084,0.00019925,2]
[359019718,1745653838105,-500.0,0.00019973,2]
[359019719,1745653838116,-165.77920807,0.00019973,2]
[359019720,1745653838126,-167.08617438,0.00019973,2]
[359019721,1745653838136,-159.93929853,0.00019973,2]
[359019722,1745653838146,-500.0,0.00019973,2]
[359019723,1745653838156,-157.83682965,0.00019973,2]
[359019724,1745653838166,-500.0,0.00019973,2]
[359019725,1745653838176,-159.98710487,0.00019973,2]
[359019726,1745653838186,-500.0,0.00019973,2]
[359019727,1745653838196,-359.31890052,0.00019973,2]
[359019728,1745653838206,-500.0,0.00019973,2]
[359019729,1745653838216,-500.0,0.00019973,2]
[359019730,1745653838226,-500.0,0.00019973,2]
[359019731,1745653838236,-280.82120578,0.00019973,2]
[359019732,1745653838246,-500.0,0.00019973,2]
[359019733,1745653838256,-607.62589314,0.00019973,2]
[359019734,1745653838266,-182.12115987,0.00019973,2]
[359019735,1745653838276,-207.8330175,0.00019976,2]
[359019736,1745653838286,-500.0,0.00019976,2]
[359019737,1745653838296,-500.0,0.00019976,2]
[359019738,1745653838306,-500.0,0.00019976,2]
[359019739,1745653838316,-3226.0,0.00019976,2]
[359019740,1745653838326,-500.0,0.00019976,2]
[359019741,1745653838335,-500.0,0.00019976,2]
[359019742,1745653838345,-1000.0,0.00019985,2]
[359019743,1745653838355,-1000.0,0.00019985,2]
[359019744,1745653838365,-184.9908749,0.00019985,2]
[359019746,1745653838375,-166.0163325,0.00019985,2]
[359019748,1745653838385,-415.69541252,0.00019985,2]
[359019749,1745653838395,-244.29891464,0.00019985,2]
[359019750,1745653838404,-500.0,0.00019985,2]
[359019751,1745653838414,-500.0,0.00019985,2]
[359019752,1745653838424,-500.0,0.00019985,2]
[359019753,1745653838433,-500.0,0.00019985,2]
[359019754,1745653838444,-500.0,0.00019985,2]
[359019755,1745653838454,-500.0,0.00019985,2]
[359019756,1745653838464,-500.0,0.00019985,2]
[359019757,1745653838475,-500.0,0.00019985,2]
[359019758,1745653838485,-500.0,0.00019985,2]
[359019759,1745653838495,-500.0,0.00019985,2]
[359019760,1745653838505,-507.26761122,0.00019985,2]
[359019761,1745653838514,-507.26761122,0.00019985,2]
[359019762,1745653838524,-507.26761122,0.00019985,2]
[359019763,1745653838534,-507.26761122,0.00019985,2]
[359019764,1745653838544,-507.26761122,0.00019985,2]
[359019765,1745653838554,-507.26761122,0.00019985,2]
[359019766,1745653838564,-507.26761122,0.00019985,2]
[359019767,1745653838573,-507.26761122,0.00019985,2]
[359019768,1745653838584,-507.26761122,0.00019985,2]
[359019769,1745653838594,-507.26761122,0.00019985,2]
[359019770,1745653838603,-507.26761122,0.00019985,2]
[359019771,1745653838613,-507.26761122,0.00019985,2]
[359019772,1745653838623,-507.26761122,0.00019985,2]
[359019773,1745653838633,-500.0,0.00019985,2]
[359019774,1745653838643,-500.0,0.00019985,2]
[359019775,1745653838653,-360.90141684,0.00019985,2]
[359019776,1745653838663,-500.0,0.00019985,2]
[359019777,1745653838672,-500.0,0.00019985,2]
[359019778,1745653838683,-500.0,0.00019985,2]
[359019779,1745653838692,-10266.6181035,0.00019986,2]
[359019780,1745653838702,-4717.4335388,0.00019986,2]
[359019781,1745653838712,-2984.3690165,0.00019986,2]
[359019782,1745653838722,-150.55257584,0.00019986,2]
[359019783,1745653838731,-150.0,0.00019986,2]
[359019784,1745653838741,-150.0,0.00019986,2]
[359019785,1745653838750,-150.0,0.00019986,2]
[359019786,1745653838760,-685.7905381,0.00019986,2]
[359019787,1745653838770,-11992.2774994,0.00019986,2]
[359019788,1745653838780,-825.2563954,0.00019986,2]
[359019789,1745653838790,-111436.5243162,0.00019986,2]
[359019790,1745653838799,-1000.0,0.00019986,2]
[359019791,1745653838808,-1000.0,0.00019986,2]
[359019792,1745653838818,-1000.0,0.00019986,2]
[359019793,1745653838827,-1000.0,0.00019986,2]
[359019794,1745653838837,-1000.0,0.00019986,2]
[359019795,1745653838847,-1000.0,0.00019986,2]
[359019796,1745653838857,-1000.0,0.00019986,2]
[359019797,1745653838867,-1000.0,0.00019986,2]
[359019798,1745653838877,-1000.0,0.00019986,2]
[359019799,1745653838886,-1000.0,0.00019986,2]
[359019800,1745653838895,-1000.0,0.00019986,2]
[359019801,1745653838905,-1000.0,0.00019986,2]
[359019802,1745653838915,-668.65185757,0.00019988,2]
[359019803,1745653838925,-1149.2357225,0.00019999,2]
[359019804,1745653838935,-300.0,0.00019999,2]
[359019805,1745653838945,-500.0,0.00019999,2]
[359019806,1745653838955,-151.0,0.00019999,2]
[359019807,1745653838965,-685.78458745,0.00019999,2]
[359019808,1745653838974,-1023.0,0.00019999,2]
[359019809,1745653838984,-532717.16663009,0.0002,2]
[359019810,1745653838993,-2837.85448746,0.0002,2]
[359019811,1745653839003,-1789472.50394245,0.0002,2]
[359019812,1745653839016,-2494318.525,0.0002,2]
[359019813,1745653839164,-435.10499972,0.0002,2]
[359019814,1745653839283,-5799.06923783,0.0002,2]
[359019864,1745653840403,-1173.13470736,0.0002,2]
[359019871,1745653840470,-4741.35094822,0.0002,2]
[359019915,1745653845905,-358.14771767,0.000199,2]
[359019916,1745653845916,-320.83028443,0.0002,2]
[359019917,1745653846153,-1682.30500058,0.0002,2]
[359019950,1745653846684,-4752.39544437,0.0002,2]
[359019966,1745654042468,23900.0,0.00019012,2]
[359019967,1745654279963,1000.0,0.00018976,2]
[359020018,1745654303585,10000.0,0.00037808,60]
[359020019,1745654477021,735.23249726,0.00019202,2]
[359020020,1745654591080,2000.0,0.00019048,2]
[359020021,1745654599530,200.0,0.00019048,2]
[359020022,1745654747738,164.04,0.00018956,2]
[359020023,1745654778763,356.35,0.00018951,2]
[359020024,1745654788476,250.0,0.00018951,2]
[359020027,1745654946731,154.58,0.00019007,2]
[359020028,1745655001330,10000.0,0.00037808,60]
[359020029,1745655018278,10000.0,0.00037808,60]
[359020034,1745655032231,-166.66,0.00019536,2]
[359020035,1745655032242,-250.0,0.00019539,2]
[359020036,1745655032252,-380.32009551,0.00019542,2]
[359020037,1745655032406,-354.91240175,0.00019542,2]
[359020038,1745655032416,-345.08759825,0.00019791,2]
[359020039,1745655032428,-654.91240175,0.00019791,2]
[359020040,1745655032438,-329.9251069,0.00019799,2]
[359020041,1745655032452,-1200.0,0.00019809,2]
[359020042,1745655032464,-27083.12170087,0.0001981,2]
[359020043,1745655032474,-735.23249726,0.00019855,2]
[359020044,1745655032484,-168.22704756,0.00019886,2]
[359020045,1745655032494,-2354.76255624,0.00019886,2]
[359020046,1745655032504,-2500.0,0.00019886,2]
[359020047,1745655032514,-168.22704755,0.00019888,2]
[359020048,1745655032524,-168.22704755,0.0001989,2]
[359020049,1745655032534,-1000.0,0.00019899,2]
[359020050,1745655032545,-415.4359,0.000199,2]
[359020051,1745655032555,-2354.76255624,0.000199,2]
[359020052,1745655032565,-339.54023322,0.000199,2]
[359020053,1745655032576,-20014.17774864,0.000199,2]
[359020054,1745655032586,-896.70419412,0.000199,2]
[359020056,1745655032596,-167.02059275,0.000199,2]
[359020058,1745655032606,-392.26305144,0.000199,2]
[359020059,1745655032616,-1448.664,0.00019903,2]
[359020060,1745655032626,-2082.46,0.00019903,2]
[359020062,1745655032635,-579.0,0.00019903,2]
[359020064,1745655032646,-1021.514,0.00019903,2]
[359020066,1745655032656,-548.0,0.00019903,2]
[359020068,1745655032666,-1135.0,0.00019903,2]
[359020069,1745655032676,-2149.0,0.00019903,2]
[359020070,1745655032686,-3991.0,0.00019903,2]
[359020071,1745655032696,-161.0,0.00019903,2]
[359020072,1745655032706,-6193.0,0.00019903,2]
[359020073,1745655032717,-257.141,0.00019903,2]
[359020074,1745655032727,-911.814,0.00019903,2]
[359020075,1745655032737,-1000.0,0.00019925,2]
[359020076,1745655032747,-1000.0,0.00019925,2]
[359020077,1745655032757,-1000.0,0.00019925,2]
[359020078,1745655032767,-1000.0,0.00019925,2]
[359020079,1745655032777,-1000.0,0.00019925,2]
[359020080,1745655032787,-1000.0,0.00019925,2]
[359020081,1745655032797,-1000.0,0.00019925,2]
[359020082,1745655032807,-1000.0,0.00019925,2]
[359020083,1745655032817,-1000.0,0.00019925,2]
[359020084,1745655032828,-1000.0,0.00019925,2]
[359020085,1745655032837,-1000.0,0.00019925,2]
[359020086,1745655032848,-1000.0,0.00019925,2]
[359020087,1745655032858,-1000.0,0.00019925,2]
[359020088,1745655032868,-1000.0,0.00019925,2]
[359020089,1745655032878,-1000.0,0.00019925,2]
[359020090,1745655032888,-1000.0,0.00019925,2]
[359020091,1745655032898,-1000.0,0.00019925,2]
[359020092,1745655032908,-1000.0,0.00019925,2]
[359020093,1745655032919,-1000.0,0.00019925,2]
[359020094,1745655032928,-1000.0,0.00019925,2]
[359020095,1745655032938,-1000.0,0.00019925,2]
[359020096,1745655032948,-3556.158,0.00019939,2]
[359020097,1745655032958,-179.084,0.00019939,2]
[359020098,1745655032969,-1000.0,0.0001996,2]
[359020099,1745655032978,-1000.0,0.0001996,2]
[359020100,1745655032988,-506.95241111,0.00019973,2]
[359020101,1745655032998,-500.0,0.00019973,2]
[359020102,1745655033007,-500.0,0.00019973,2]
[359020103,1745655033017,-161.3574382,0.00019973,2]
[359020104,1745655033027,-500.0,0.00019973,2]
[359020105,1745655033037,-350.55089011,0.00019973,2]
[359020106,1745655033048,-500.0,0.00019973,2]
[359020107,1745655033058,-151.35803654,0.00019973,2]
[359020108,1745655036040,10000.0,0.00037808,60]
[359020113,1745655038282,-168.22704755,0.00019892,2]
[359020114,1745655038294,-877.0,0.00019903,2]
[359020115,1745655038305,-348.64196346,0.00019973,2]
[359020116,1745655038319,-500.0,0.00019973,2]
[359020117,1745655038332,-151.0,0.00019974,2]
[359020118,1745655038343,-207.4,0.00019974,2]
[359020119,1745655038355,-776.95349225,0.00019974,2]
[359020120,1745655038366,-16189.01364198,0.00019986,2]
[359020121,1745655038384,-589.97551441,0.00019986,2]
[359020122,1745655038396,-5933.55,0.00019986,2]
[359020123,1745655038408,-173.08306891,0.00019986,2]
[359020124,1745655038419,-10099.44563109,0.00019986,2]
[359020125,1745655038431,-6751.38028371,0.00019986,2]
[359020126,1745655038443,-6749.7186562,0.00019986,2]
[359020127,1745655038458,-948.92606009,0.00019986,2]
[359020128,1745655038470,-35540.7,0.00019986,2]
[359020304,1745655040603,-168.22704755,0.00019894,2]
[359020306,1745655040613,-393.63823448,0.00019986,2]
[359020308,1745655040625,-4682.02666871,0.00019986,2]
[359020310,1745655040636,-1149.49164026,0.00019986,2]
[359020325,1745655040775,-331.07,0.00019986,2]
[359020548,1745655043240,-518.49335447,0.00019986,2]
[359020573,1745655043378,-61.96922854,0.00019986,2]
[359020616,1745655046255,-168.22704755,0.00019896,2]
[359020617,1745655046267,-265.49489872,0.000199,2]
[359020618,1745655046277,-689.83423782,0.00019986,2]
[359020619,1745655046316,-2150.10003,0.00019986,2]
[359020620,1745655046371,-3789.87691289,0.00019986,2]
[359020626,1745655046658,-622.38400205,0.00019986,2]
[359020628,1745655046670,-1134.284,0.00019986,2]
[359020684,1745655054895,10000.0,0.00037808,60]
[359020685,1745655057822,1241.83,0.0001798,2]
[359020686,1745655071295,10000.0,0.00037808,60]
[359020687,1745655090945,10000.0,0.00037808,60]
[359020688,1745655113347,6738.0,0.00037808,60]
[359020689,1745655121723,1500.0,0.00019281,2]
[359020690,1745655151931,250.0,0.00017,2]
[359020691,1745655152986,300.0,0.00019,2]
[359020692,1745655193242,2000.0,0.00018848,2]
[359020693,1745655200271,200.0,0.00018848,2]
[359020694,1745655254102,1000.0,0.00019056,2]
[359020695,1745655266669,-329.6948007,0.00019799,2]
[359020696,1745655266712,-200.0,0.00019799,2]
[359020697,1745655266751,-250.0,0.000198,2]
[359020698,1745655266792,-796.93242777,0.000198,2]
[359020699,1745655266832,-167.02059274,0.00019886,2]
[359020700,1745655266879,-2500.0,0.00019886,2]
[359020701,1745655266914,-1617.7153,0.00019886,2]
[359020702,1745655266952,-630.8001,0.00019886,2]
[359020703,1745655266982,-168.22704755,0.00019898,2]
[359020704,1745655267021,-163.11701995,0.000199,2]
[359020705,1745655267094,-168.22704755,0.000199,2]
[359020706,1745655267135,-23569.91,0.000199,2]
[359020707,1745655267174,-176.99659916,0.000199,2]
[359020708,1745655267212,-597.80279608,0.000199,2]
[359020709,1745655267250,-33867.1210686,0.00019972,2]
[359020710,1745655267285,-13257.4143555,0.00019972,2]
[359020711,1745655267322,-500.0,0.00019973,2]
[359020712,1745655267357,-500.0,0.00019973,2]
[359020713,1745655267391,-500.0,0.00019973,2]
[359020714,1745655267425,-1135.0,0.00019982,2]
[359020715,1745655267458,-1418.92724373,0.00019986,2]
[359020716,1745655267493,-262.36160997,0.00019986,2]
[359020717,1745655267528,-150.0,0.00019986,2]
[359020718,1745655267562,-200.24628854,0.00019986,2]
[359020719,1745655267598,-202.2456417,0.00019986,2]
[359020720,1745655267631,-29114.6432121,0.00019986,2]
[359020721,1745655267665,-24362.1653555,0.00019986,2]
[359020722,1745655267701,-11397.0386822,0.00019986,2]
[359020723,1745655267734,-9536.663009,0.00019986,2]
[359020724,1745655267767,-42259.72980166,0.00019986,2]
[359020725,1745655296777,-2500.0,0.00019886,2]
[359020726,1745655296804,-13342.78516576,0.000199,2]
[359020727,1745655296832,-157.21483424,0.00019985,2]
[359020728,1745655347083,-313.2100607,0.00019799,2]
[359020729,1745655347111,-176.99659914,0.000199,2]
[359020730,1745655347147,-500.0,0.00019973,2]
[359020731,1745655347175,-500.0,0.00019973,2]
[359020732,1745655347201,-153.969,0.00019982,2]
[359020733,1745655347226,-872.0,0.00019982,2]
[359020734,1745655347251,-920.0,0.00019982,2]
[359020735,1745655347276,-1336.0,0.00019982,2]
[359020736,1745655347300,-877.0,0.00019982,2]
[359020737,1745655347327,-1200.0,0.00019984,2]
[359020738,1745655347354,-300.0,0.00019984,2]
[359020739,1745655347381,-342.78516576,0.00019985,2]
[359020740,1745655347408,-500.0,0.00019985,2]
[359020741,1745655347437,-500.0,0.00019985,2]
[359020742,1745655347464,-500.0,0.00019985,2]
[359020743,1745655347491,-500.0,0.00019985,2]
[359020744,1745655347519,-500.0,0.00019985,2]
[359020745,1745655347547,-500.0,0.00019985,2]
[359020746,1745655347580,-500.0,0.00019985,2]
[359020747,1745655347607,-500.0,0.00019985,2]
[359020748,1745655347634,-500.0,0.00019985,2]
[359020749,1745655347664,-500.0,0.00019985,2]
[359020750,1745655347691,-500.0,0.00019985,2]
[359020751,1745655347718,-500.0,0.00019985,2]
[359020752,1745655347745,-500.0,0.00019985,2]
[359020753,1745655347772,-500.0,0.00019985,2]
[359020754,1745655347800,-500.0,0.00019985,2]
[359020755,1745655347827,-500.0,0.00019985,2]
[359020756,1745655347854,-500.0,0.00019985,2]
[359020757,1745655347885,-500.0,0.00019985,2]
[359020758,1745655347919,-152.43643097,0.00019985,2]
[359020759,1745655347947,-500.0,0.00019985,2]
[359020760,1745655347974,-500.0,0.00019985,2]
[359020761,1745655348000,-290.98678876,0.00019985,2]
[359020762,1745655348043,-32064.61595467,0.00019986,2]
[359020763,1745655483863,23900.0,0.00019063,2]
[359020764,1745655586875,1056.57,0.00019035,2]
[359020765,1745655692135,150.0,0.00019024,2]
[359020766,1745655693250,252.0,0.0001924,2]
[359020767,1745655778262,178.17,0.00019033,2]
[359020769,1745655791376,2000.0,0.00018881,2]
[359020770,1745655799561,200.0,0.00018881,2]
[359020771,1745655808900,1393.43,0.00019024,2]
[359020773,1745656023742,532.90953357,0.00019985,7]
[359020779,1745656052324,5146.6,0.00013699,2]
[359020780,1745656052689,5146.6,0.00013699,2]
[359020781,1745656053315,5146.6,0.00013699,2]
[359020782,1745656053426,5146.6,0.00013699,2]
[359020783,1745656053719,5146.6,0.00013699,2]
[359020784,1745656054053,5146.6,0.00013699,2]
[359020785,1745656054457,5146.6,0.00013699,2]
[359020786,1745656054773,5146.6,0.00013699,2]
[359020787,1745656055111,5146.6,0.00013699,2]
[359020788,1745656057355,5146.6,0.00013699,2]
[359020789,1745656057727,5146.6,0.00013699,2]
[359020790,1745656058047,5146.6,0.00013699,2]
[359020791,1745656058385,5146.6,0.00013699,2]
[359020792,1745656058715,5146.6,0.00013699,2]
[359020793,1745656059089,5146.6,0.00013699,2]
[359020794,1745656059477,5146.6,0.00013699,2]
[359020795,1745656059922,5146.6,0.00013699,2]
[359020796,1745656060317,5146.6,0.00013699,2]
[359020797,1745656060609,5146.6,0.00013699,2]
[359020798,1745656064520,5146.69296203,0.00013699,2]
[359020806,1745656163590,250.0,0.00018948,2]
[359020807,1745656201545,1179.73,0.0001703,2]
[359020816,1745656232519,-1077.050005,0.00019294,2]
[359020817,1745656232638,-102.679995,0.00019294,2]
[359020818,1745656232647,-150.0,0.000193,2]
[359020819,1745656232658,-250.0,0.00019452,2]
[359020820,1745656232667,-395.80328687,0.00019507,2]
[359020821,1745656232677,-4117.88671809,0.0001957,2]
[359020822,1745656232688,-74.11328191,0.0001957,2]
[359020823,1745656232698,-166.7,0.00019643,2]
[359020824,1745656232708,-1593.38671809,0.00019685,2]
[359020825,1745656232779,-4599.61328191,0.00019685,2]
[359020826,1745656232788,-2149.0,0.00019685,2]
[359020829,1745656232798,-3991.0,0.00019685,2]
[359020832,1745656232807,-242.64268109,0.00019741,2]
[359020835,1745656232817,-242.64268109,0.00019771,2]
[359020838,1745656232827,-297.5495576,0.00019799,2]
[359020840,1745656232836,-314.0,0.000198,2]
[359020842,1745656232845,-242.64268109,0.000198,2]
[359020843,1745656232855,-1200.0,0.00019829,2]
[359020844,1745656232864,-36985.00372853,0.0001983,2]
[359020846,1745656232873,-730.28498937,0.0001987,2]
[359020848,1745656232883,-2500.0,0.00019872,2]
[359020850,1745656232892,-497.7891,0.00019886,2]
[359020852,1745656232902,-3248.06686756,0.00019889,2]
[359020854,1745656232912,-6542.80705801,0.000199,3]
[359020856,1745656232921,-33921.79591304,0.000199,2]
[359020860,1745656232959,-2764.3643956,0.000199,2]
[359020868,1745656233036,-1441.15189484,0.000199,2]
[359020870,1745656233048,-1100.0,0.000199,2]
[359021033,1745656239056,-260.5148479,0.00019685,2]
[359021042,1745656239151,-446.00185798,0.00019685,2]
[359021054,1745656239305,-213.48329412,0.00019685,2]
[359021055,1745656239316,-94.85842203,0.000199,2]